fUST/lending_fUST_20240905
["ID","MTS","AMOUNT","RATE_DAILY","PERIOD"]
[337170257,1725480639675,-500.0,0.00024747,2]
[337170258,1725480639684,-500.0,0.00024747,2]
[337170259,1725480639694,-500.0,0.00024747,2]
[337170260,1725480639703,-500.0,0.00024747,2]
[337170261,1725480639713,-500.0,0.00024747,2]
[337170262,1725480639723,-500.0,0.00024747,2]
[337170263,1725480639732,-500.0,0.00024747,2]
[337170264,1725480639742,-500.0,0.00024747,2]
[337170265,1725480639751,-500.0,0.00024747,2]
[337170266,1725480639761,-500.0,0.00024747,2]
[337170268,1725480639770,-500.0,0.00024747,2]
[337170269,1725480639780,-500.0,0.00024747,2]
[337170270,1725480639789,-500.0,0.00024747,2]
[337170271,1725480639798,-500.0,0.00024747,2]
[337170272,1725480639811,-500.0,0.00024747,2]
[337170273,1725480639821,-500.0,0.00024747,2]
[337170274,1725480639830,-501.69542615,0.00024747,2]
[337170275,1725480639840,-475.84290444,0.00024747,2]
[337170276,1725480639850,-500.0,0.00024747,2]
[337170277,1725480639859,-500.0,0.00024747,2]
[337170278,1725480639868,-600.0,0.00024747,2]
[337170279,1725480639878,-55555.0,0.00024748,3]
[337170280,1725480639887,-89842.85166071,0.00024757,15]
[337170282,1725480639897,-115930.66289493,0.00024757,3]
[337170283,1725480639913,-42214.51831807,0.00024757,3]
[337170284,1725480639923,-158145.181213,0.00024758,3]
[337170285,1725480639933,-61334.04900303,0.00024758,2]
[337170287,1725480639990,-6135.10085112,0.00024758,2]
[337170337,1725480640468,-592.27,0.00024728,3]
[337170338,1725480640478,-711.57714363,0.00024758,2]
[337170339,1725480640491,-1741.76988004,0.00024758,2]
[337170340,1725480640521,-14416.34039324,0.00024758,2]
[337170354,1725480643359,-1800.56760621,0.00024758,2]
[337170402,1725480646351,-4206.39960053,0.00024758,2]
[337170403,1725480646364,-23224.70039951,0.00024772,15]
[337170507,1725480932368,511.3,0.000201,2]
[337170523,1725481723149,5790.599935,0.00014,2]
[337170525,1725481753142,-333.64489287,0.00020377,2]
[337170534,1725481832424,-2233.41938527,0.00020377,2]
[337170536,1725481832434,-2384.70243935,0.00022,30]
[337170575,1725481838591,-1226.00000001,0.00022,30]
[337170576,1725481838604,-2647.56522162,0.00022,30]
[337170577,1725481838613,-241.835208,0.00022736,2]
[337170578,1725481838624,-241.835208,0.00022798,2]
[337170579,1725481838634,-241.835208,0.00022861,2]
[337170580,1725481838643,-241.835208,0.00022923,2]
[337170581,1725481838653,-241.835208,0.00022985,2]
[337170582,1725481838662,-241.835208,0.00023048,2]
[337170583,1725481838673,-241.835208,0.0002311,2]
[337170584,1725481838683,-241.835208,0.00023173,2]
[337170585,1725481838693,-241.835208,0.00023235,2]
[337170586,1725481838703,-241.835208,0.00023297,2]
[337170587,1725481838715,-241.835208,0.0002336,2]
[337170588,1725481838726,-300.0,0.0002337,2]
[337170589,1725481838736,-24900.0,0.00023371,2]
[337170590,1725481838745,-241.835208,0.00023422,2]
[337170591,1725481838755,-241.835208,0.00023484,2]
[337170592,1725481838765,-241.835208,0.00023547,2]
[337170593,1725481838775,-241.835208,0.00023609,2]
[337170594,1725481838785,-6300.70759218,0.00023626,2]
[337170595,1725481838794,-153.0,0.000239,2]
[337170596,1725481838804,-153.0,0.000239,2]
[337170597,1725481838814,-153.0,0.000239,2]
[337170598,1725481838824,-1500.0,0.00024,2]
[337170599,1725481838833,-153.0,0.000241,2]
[337170600,1725481838843,-306.0,0.000241,2]
[337170601,1725481838853,-153.0,0.000241,2]
[337170602,1725481838862,-153.0,0.000241,2]
[337170603,1725481838873,-153.0,0.000242,2]
[337170604,1725481838883,-153.0,0.000242,2]
[337170605,1725481838896,-153.0,0.000242,2]
[337170606,1725481838906,-153.0,0.000242,2]
[337170607,1725481838915,-153.0,0.000242,2]
[337170608,1725481838924,-301.67167704,0.00024574,6]
[337170609,1725481838935,-153.0,0.00024658,2]
[337170610,1725481838945,-153.0,0.00024658,2]
[337170611,1725481838956,-153.0,0.00024658,2]
[337170612,1725481838966,-153.0,0.00024658,2]
[337170613,1725481838976,-153.0,0.00024658,2]
[337170614,1725481838986,-153.0,0.00024658,2]
[337170615,1725481838996,-153.0,0.00024658,2]
[337170616,1725481839006,-153.0,0.00024658,2]
[337170617,1725481839017,-153.0,0.00024658,2]
[337170618,1725481839027,-153.0,0.00024658,2]
[337170619,1725481839040,-153.0,0.00024658,2]
[337170620,1725481839051,-153.0,0.00024658,2]
[337170621,1725481839062,-380.0,0.00024658,2]
[337170622,1725481839072,-200.0,0.00024658,15]
[337170623,1725481839083,-629.682759,0.00024658,2]
[337170624,1725481839343,-572.65998209,0.0002468,2]
[337170625,1725481839365,-1000.0,0.0002469,2]
[337170626,1725481839375,-1923.82954524,0.000247,2]
[337170627,1725481839384,-572.65998206,0.00024735,2]
[337170628,1725481839394,-11563.68,0.00024769,3]
[337170629,1725481839404,-888.4,0.0002477,3]
[337170630,1725481839414,-444.2,0.0002477,3]
[337170631,1725481839425,-222.1,0.0002477,3]
[337170632,1725481839435,-666.35,0.0002477,3]
[337170633,1725481839445,-158.63137592,0.00024773,2]
[337170634,1725481839456,-501.00052669,0.00024773,2]
[337170635,1725481839466,-500.0,0.00024773,2]
[337170636,1725481839476,-500.0,0.00024773,2]
[337170637,1725481839486,-235.31894232,0.00024773,2]
[337170638,1725481839497,-158.63181578,0.00024773,2]
[337170639,1725481839508,-500.0,0.00024773,2]
[337170640,1725481839517,-156.8571277,0.00024773,2]
[337170641,1725481839526,-160.18904169,0.00024773,2]
[337170642,1725481839536,-319.411054,0.00024773,2]
[337170643,1725481839546,-310.18713937,0.00024773,2]
[337170644,1725481839555,-500.0,0.00024773,2]
[337170645,1725481839566,-197.12273504,0.00024773,2]
[337170646,1725481839577,-500.0,0.00024773,2]
[337170647,1725481839586,-500.0,0.00024773,2]
[337170648,1725481839595,-343.36791284,0.00024773,2]
[337170649,1725481839605,-158.57494327,0.00024773,2]
[337170650,1725481839614,-200.15807288,0.00024773,2]
[337170651,1725481839624,-503.50414763,0.00024778,2]
[337170652,1725481839633,-500.0,0.00024778,2]
[337170653,1725481839643,-500.0,0.00024778,2]
[337170654,1725481839653,-500.0,0.00024778,2]
[337170655,1725481839663,-553.62942885,0.00024778,2]
[337170656,1725481839675,-233.54868793,0.00024779,2]
[337170657,1725481839685,-500.0,0.00024779,2]
[337170658,1725481839695,-500.0,0.00024779,2]
[337170659,1725481839706,-500.0,0.00024779,2]
[337170660,1725481839716,-500.0,0.00024779,2]
[337170661,1725481839726,-500.0,0.00024779,2]
[337170662,1725481839736,-500.0,0.00024779,2]
[337170663,1725481839746,-544.88894006,0.00024779,2]
[337170664,1725481839756,-500.0,0.00024779,2]
[337170665,1725481839766,-426.27224737,0.00024779,2]
[337170666,1725481839776,-263.05661479,0.00024779,2]
[337170667,1725481839786,-500.0,0.00024779,2]
[337170668,1725481839796,-500.0,0.00024779,2]
[337170669,1725481839806,-500.0,0.00024779,2]
[337170670,1725481839815,-500.0,0.00024779,2]
[337170671,1725481839825,-500.0,0.00024779,2]
[337170672,1725481839834,-500.0,0.00024779,2]
[337170673,1725481839844,-500.0,0.00024779,2]
[337170674,1725481839853,-500.0,0.00024779,2]
[337170675,1725481839863,-500.0,0.00024779,2]
[337170676,1725481839874,-500.0,0.00024779,2]
[337170677,1725481839883,-500.0,0.00024779,2]
[337170678,1725481839897,-500.0,0.00024779,2]
[337170679,1725481839907,-478.39426484,0.00024779,2]
[337170680,1725481839917,-500.0,0.00024779,2]
[337170681,1725481839927,-500.0,0.00024779,2]
[337170682,1725481839938,-370.0,0.00024779,2]
[337170683,1725481839948,-89842.85166071,0.00024779,15]
[337170684,1725481839957,-88112.11697519,0.0002478,3]
[337170975,1725483033336,-300.0,0.00022978,2]
[337170976,1725483033347,-24900.0,0.00022979,2]
[337170977,1725483033358,-166.7406804,0.00023019,2]
[337170978,1725483033368,-861.6470377,0.00023137,2]
[337170979,1725483033379,-157.976543,0.00023333,2]
[337170980,1725483033389,-157.976543,0.00023468,2]
[337170981,1725483033399,-153.0,0.000236,2]
[337170982,1725483033410,-157.976543,0.00023603,2]
[337170983,1725483033420,-153.0,0.00023699,2]
[337170984,1725483033431,-153.0,0.00023699,2]
[337170985,1725483033449,-153.0,0.00023699,2]
[337170986,1725483033460,-153.0,0.00023699,2]
[337170987,1725483033471,-153.0,0.00023699,2]
[337170988,1725483033481,-153.0,0.00023699,2]
[337170989,1725483033492,-153.0,0.00023699,2]
[337170990,1725483033502,-153.0,0.00023699,2]
[337170991,1725483033512,-314.7050437,0.00023699,2]
[337170992,1725483033522,-157.976543,0.00023738,2]
[337170993,1725483033532,-157.976543,0.00023874,2]
[337170994,1725483033542,-157.976543,0.00024009,2]
[337170995,1725483033552,-209.976416,0.00024084,2]
[337170996,1725483033563,-157.976543,0.00024144,2]
[337170997,1725483033574,-157.976543,0.00024279,2]
[337170998,1725483033585,-484.83235189,0.00024294,2]
[337170999,1725483033595,-5513.11914314,0.00024314,2]
[337171000,1725483033606,-3530.48114819,0.00024399,2]
[337171001,1725483033634,-2029.22199677,0.00024399,2]
[337171002,1725483033644,-157.976543,0.00024414,2]
[337171003,1725483033654,-415.615056,0.00024422,2]
[337171004,1725483033664,-157.976543,0.00024549,2]
[337171005,1725483033675,-572.65998209,0.0002455,2]
[337171006,1725483033688,-1000.0,0.0002455,2]
[337171007,1725483033703,-2114.09840142,0.00024558,2]
[337171008,1725483033714,-572.65998206,0.00024559,2]
[337171009,1725483033724,-572.65998206,0.00024569,2]
[337171010,1725483033734,-572.65998206,0.00024578,2]
[337171011,1725483033744,-180.97,0.00024578,3]
[337171012,1725483033755,-995.34,0.00024578,3]
[337171013,1725483033765,-500.0,0.00024587,2]
[337171014,1725483033776,-485.39563344,0.00024587,2]
[337171015,1725483033786,-500.0,0.00024587,2]
[337171016,1725483033796,-500.0,0.00024587,2]
[337171017,1725483033807,-531.53732871,0.00024587,2]
[337171018,1725483033817,-500.0,0.00024587,2]
[337171019,1725483033828,-500.0,0.00024587,2]
[337171020,1725483033840,-500.0,0.00024587,2]
[337171021,1725483033850,-500.0,0.00024587,2]
[337171022,1725483033861,-500.0,0.00024587,2]
[337171023,1725483033871,-572.65998206,0.00024587,2]
[337171024,1725483033880,-14471.26130908,0.00024588,3]
[337171051,1725483038818,-148331.89769792,0.00024588,3]
[337171052,1725483038830,-54972.6684807,0.00024588,2]
[337171053,1725483038842,-55555.0,0.00024598,3]
[337171054,1725483038852,-150.112233,0.000246,4]
[337171055,1725483038862,-150.112233,0.000246,4]
[337171056,1725483038871,-150.112233,0.000246,5]
[337171057,1725483038881,-150.112233,0.000246,2]
[337171058,1725483038890,-150.112233,0.000246,5]
[337171059,1725483038901,-150.112233,0.000246,2]
[337171060,1725483038910,-150.112233,0.000246,5]
[337171061,1725483038920,-150.112233,0.000246,5]
[337171062,1725483038929,-150.112233,0.000246,5]
[337171063,1725483038941,-150.112233,0.000246,2]
[337171064,1725483038951,-426.27224737,0.00024638,2]
[337171065,1725483038961,-500.0,0.00024638,2]
[337171066,1725483038971,-233.54868793,0.00024638,2]
[337171067,1725483038980,-500.0,0.00024638,2]
[337171068,1725483038990,-263.05661479,0.00024638,2]
[337171069,1725483038999,-500.0,0.00024638,2]
[337171070,1725483039009,-500.0,0.00024638,2]
[337171071,1725483039019,-284.56944077,0.00024638,2]
[337171072,1725483039028,-500.0,0.00024638,2]
[337171073,1725483039037,-500.0,0.00024638,2]
[337171074,1725483039047,-261597.08908301,0.0002464,3]
[337171075,1725483039087,-64009.22892999,0.0002464,3]
[337171076,1725483039096,-54972.6684807,0.0002464,2]
[337171077,1725483039106,-200.0,0.00024658,15]
[337171078,1725483039116,-662.823957,0.00024658,2]
[337171079,1725483039126,-380.0,0.00024658,2]
[337171080,1725483039135,-500.0,0.00024658,2]
[337171081,1725483039145,-170.89330773,0.00024658,2]
[337171082,1725483039154,-500.0,0.00024658,2]
[337171083,1725483039163,-500.0,0.00024658,2]
[337171084,1725483039172,-500.0,0.00024658,2]
[337171085,1725483039181,-500.0,0.00024658,2]
[337171086,1725483039195,-500.0,0.00024658,2]
[337171087,1725483039205,-486.29428851,0.00024658,2]
[337171088,1725483039214,-500.0,0.00024658,2]
[337171089,1725483039224,-500.0,0.00024658,2]
[337171090,1725483039233,-500.0,0.00024658,2]
[337171091,1725483039248,-500.0,0.00024658,2]
[337171092,1725483039257,-500.0,0.00024658,2]
[337171093,1725483039269,-500.0,0.00024658,2]
[337171094,1725483039279,-500.0,0.00024658,2]
[337171095,1725483039289,-500.0,0.00024658,2]
[337171096,1725483039298,-500.0,0.00024658,2]
[337171097,1725483039308,-500.0,0.00024658,2]
[337171098,1725483039320,-500.0,0.00024658,2]
[337171099,1725483039332,-500.0,0.00024658,2]
[337171100,1725483039344,-500.0,0.00024658,2]
[337171101,1725483039355,-500.0,0.00024658,2]
[337171102,1725483039364,-500.0,0.00024658,2]
[337171103,1725483039374,-500.0,0.00024658,2]
[337171104,1725483039387,-500.0,0.00024658,2]
[337171105,1725483039397,-500.0,0.00024658,2]
[337171106,1725483039408,-500.0,0.00024658,2]
[337171107,1725483039420,-500.0,0.00024658,2]
[337171108,1725483039432,-500.0,0.00024658,2]
[337171109,1725483039445,-500.0,0.00024658,2]
[337171110,1725483039454,-500.0,0.00024658,2]
[337171111,1725483039465,-500.0,0.00024658,2]
[337171112,1725483039476,-500.0,0.00024658,2]
[337171113,1725483039486,-500.0,0.00024658,2]
[337171114,1725483039496,-500.0,0.00024658,2]
[337171115,1725483039506,-500.0,0.00024658,2]
[337171116,1725483039516,-500.0,0.00024658,2]
[337171117,1725483039526,-500.0,0.00024658,2]
[337171118,1725483039536,-500.0,0.00024658,2]
[337171119,1725483039549,-500.0,0.00024658,2]
[337171120,1725483039559,-500.0,0.00024658,2]
[337171121,1725483039569,-500.0,0.00024658,2]
[337171122,1725483039579,-500.0,0.00024658,2]
[337171123,1725483039589,-500.0,0.00024658,2]
[337171124,1725483039599,-500.0,0.00024658,2]
[337171125,1725483039609,-550.0,0.00024658,2]
[337171126,1725483039619,-500.0,0.00024658,2]
[337171127,1725483039629,-500.0,0.00024658,2]
[337171128,1725483039639,-500.0,0.00024658,2]
[337171129,1725483039648,-197.12273504,0.00024673,2]
[337171130,1725483039658,-158.57494327,0.00024673,2]
[337171131,1725483039667,-200.15807288,0.00024673,2]
[337171132,1725483039677,-158.63137592,0.00024673,2]
[337171133,1725483039686,-501.00052669,0.00024673,2]
[337171134,1725483039697,-500.0,0.00024673,2]
[337171135,1725483039708,-500.0,0.00024673,2]
[337171136,1725483039717,-235.31894232,0.00024673,2]
[337171137,1725483039727,-158.63181578,0.00024673,2]
[337171138,1725483039737,-156.8571277,0.00024673,2]
[337171139,1725483039747,-151.0,0.00024687,7]
[337171140,1725483039757,-151.0,0.00024687,7]
[337171141,1725483039767,-151.0,0.00024687,7]
[337171142,1725483039777,-151.0,0.00024687,7]
[337171143,1725483039787,-2288.034385,0.00024687,7]
[337171144,1725483039799,-2288.034385,0.00024687,7]
[337171145,1725483039810,-151.0,0.00024687,7]
[337171146,1725483039820,-151.0,0.00024687,7]
[337171147,1725483039831,-151.0,0.00024687,7]
[337171148,1725483039840,-151.0,0.00024687,7]
[337171149,1725483039850,-151.0,0.00024687,7]
[337171150,1725483039861,-1637.501268,0.00024687,7]
[337171151,1725483039871,-1637.501268,0.00024687,7]
[337171152,1725483039880,-151.0,0.00024687,7]
[337171153,1725483039890,-2890.557888,0.00024687,7]
[337171154,1725483039900,-2890.557888,0.00024687,7]
[337171155,1725483039910,-151.0,0.00024688,7]
[337171156,1725483039919,-151.0,0.00024688,7]
[337171157,1725483039929,-151.0,0.00024688,7]
[337171158,1725483039939,-232.0,0.00024688,7]
[337171159,1725483039949,-2288.034385,0.00024688,7]
[337171160,1725483039958,-2288.034385,0.00024688,7]
[337171161,1725483039968,-151.0,0.00024688,7]
[337171162,1725483039977,-151.0,0.00024688,7]
[337171163,1725483039987,-151.0,0.00024688,7]
[337171164,1725483039997,-151.0,0.00024688,7]
[337171165,1725483040006,-151.0,0.00024688,7]
[337171166,1725483040016,-1637.501268,0.00024688,7]
[337171167,1725483040025,-1637.501268,0.00024688,7]
[337171168,1725483040036,-2890.557888,0.00024688,7]
[337171169,1725483040046,-2890.557888,0.00024688,7]
[337171171,1725483040056,-43016.36893277,0.00024729,2]
[337171180,1725483040791,-2497.68619908,0.00024729,2]
[337171184,1725483040848,-9458.61334885,0.00024729,2]
[337171186,1725483040858,-170.507214,0.00024739,7]
[337171188,1725483040868,-151.0,0.00024739,2]
[337171190,1725483040878,-247.027118,0.00024739,2]
[337171192,1725483040887,-151.0,0.00024739,7]
[337171194,1725483040896,-151.094176,0.00024739,7]
[337171196,1725483040906,-152.943172,0.00024739,7]
[337171198,1725483040915,-151.0,0.00024739,7]
[337171200,1725483040923,-151.0,0.00024739,7]
[337171202,1725483040933,-151.0,0.00024739,7]
[337171205,1725483040947,-151.0,0.00024739,7]
[337171207,1725483040958,-1510.185092,0.00024739,7]
[337171209,1725483040967,-151.0,0.00024739,7]
[337171210,1725483040976,-1510.185092,0.00024739,7]
[337171213,1725483040985,-151.0,0.00024749,7]
[337171214,1725483040995,-5456.56668596,0.000248,30]
[337171216,1725483041004,-150.112233,0.000248,3]
[337171217,1725483041014,-150.112233,0.000248,4]
[337171219,1725483041024,-150.112233,0.000248,5]
[337171221,1725483041033,-150.112233,0.000248,5]
[337171223,1725483041044,-150.112233,0.000248,4]
[337171225,1725483041054,-150.112233,0.000248,3]
[337171227,1725483041063,-150.112233,0.000248,3]
[337171229,1725483041072,-915.0,0.000248,2]
[337171232,1725483041082,-150.01,0.00024867,2]
[337171234,1725483041091,-4835.69442716,0.00024867,2]
[337171235,1725483041100,-155.0,0.000249,12]
[337171237,1725483041110,-150.112233,0.000249,4]
[337171239,1725483041119,-3000.0,0.000249,2]
[337171241,1725483041128,-3000.0,0.0002491,2]
[337171243,1725483041137,-3000.0,0.0002492,2]
[337171245,1725483041147,-3000.0,0.0002493,2]
[337171248,1725483041165,-3000.0,0.0002494,2]
[337171251,1725483041178,-3000.0,0.0002495,2]
[337171253,1725483041189,-3000.0,0.0002496,2]
[337171255,1725483041199,-3000.0,0.0002497,2]
[337171257,1725483041208,-151.0,0.0002497,7]
[337171259,1725483041218,-151.0,0.0002497,7]
[337171261,1725483041228,-500.0,0.00024973,2]
[337171263,1725483041240,-500.0,0.00024973,2]
[337171284,1725483041527,-500.94504749,0.00024973,2]
[337171285,1725483041538,-500.0,0.00024973,2]
[337171286,1725483041547,-160.18904169,0.00024973,2]
[337171287,1725483041557,-500.0,0.00024973,2]
[337171288,1725483041567,-500.0,0.00024973,2]
[337171289,1725483041576,-319.411054,0.00024973,2]
[337171290,1725483041586,-500.0,0.00024973,2]
[337171291,1725483041596,-310.18713937,0.00024973,2]
[337171292,1725483041605,-343.36791284,0.00024973,2]
[337171293,1725483041614,-243.6805,0.00024975,2]
[337171294,1725483041624,-3000.0,0.0002498,2]
[337171295,1725483041634,-151.0,0.0002498,7]
[337171296,1725483041644,-1510.185092,0.0002498,7]
[337171297,1725483041654,-296.48697158,0.0002498,7]
[337171352,1725483043711,-6.81025381,0.0002498,7]
[337171423,1725483057837,500.0,0.00024,120]
[337171424,1725483058614,500.0,0.00024,120]
[337171425,1725483059765,500.0,0.00024,120]
[337171426,1725483060525,500.0,0.00024,120]
[337171427,1725483061670,500.0,0.00024,120]
[337171428,1725483062170,500.0,0.00024,120]
[337171429,1725483062950,500.0,0.00024,120]
[337171430,1725483064010,500.0,0.00024,120]
[337171431,1725483069660,500.0,0.00024,120]
[337171432,1725483070589,500.0,0.00024,120]
[337171433,1725483072234,500.0,0.00024,120]
[337171434,1725483072610,500.0,0.00024,120]
[337171435,1725483073402,517.09,0.00024,120]
[337171535,1725484231882,-500.0,0.00024,7]
[337171537,1725484231893,-523.63,0.00024,7]
[337171540,1725484231906,-300.0,0.00024434,2]
[337171542,1725484231916,-208.0725932,0.00024435,2]
[337171544,1725484231927,-208.0725932,0.00024435,2]
[337171546,1725484231936,-208.0725932,0.00024435,2]
[337171548,1725484231946,-208.0725932,0.00024435,2]
[337171550,1725484231956,-208.0725932,0.00024435,2]
[337171552,1725484231965,-208.0725932,0.00024435,2]
[337171554,1725484231975,-208.0725932,0.00024435,2]
[337171556,1725484231985,-208.0725932,0.00024435,2]
[337171558,1725484231995,-208.0725932,0.00024435,2]
[337171560,1725484232005,-416.1451864,0.00024435,2]
[337171562,1725484232014,-91.99928729,0.00024435,2]
[337171698,1725484237870,-116.07330591,0.00024435,2]
[337171699,1725484237880,-208.0725932,0.00024435,2]
[337171700,1725484237891,-208.0725932,0.00024435,2]
[337171701,1725484237902,-208.0725932,0.00024435,2]
[337171702,1725484237912,-208.0725932,0.00024435,2]
[337171703,1725484237923,-208.0725932,0.00024435,2]
[337171704,1725484237934,-208.0725932,0.00024435,2]
[337171705,1725484237944,-208.0725932,0.00024435,2]
[337171706,1725484237955,-208.0725932,0.000245,2]
[337171708,1725484237964,-208.0725932,0.000245,2]
[337171710,1725484237974,-208.0725932,0.000245,2]
[337171711,1725484237983,-416.1094235,0.000245,2]
[337171712,1725484237993,-208.0725932,0.000245,2]
[337171713,1725484238002,-1000.0,0.000245,2]
[337171714,1725484238011,-208.0725932,0.000246,2]
[337171715,1725484238021,-208.0725932,0.000246,2]
[337171716,1725484238030,-208.0725932,0.000246,2]
[337171717,1725484238040,-380.0,0.00024658,2]
[337171718,1725484238050,-629.682759,0.00024658,2]
[337171719,1725484238059,-328.6975756,0.00024658,2]
[337171720,1725484238069,-153.6714867,0.00024673,2]
[337171721,1725484238078,-4823.9792503,0.000248,2]
[337171722,1725484238087,-154.0215571,0.000248,2]
[337171723,1725484238097,-1902.68856126,0.0002484,2]
[337171724,1725484238106,-1000.0,0.00024848,2]
[337171725,1725484238115,-55555.0,0.00024868,3]
[337171726,1725484238124,-623.95902438,0.000249,7]
[337171727,1725484238135,-3000.0,0.000249,2]
[337171728,1725484238144,-3000.0,0.0002491,2]
[337171729,1725484238154,-222.44,0.00024911,3]
[337171730,1725484238163,-667.35,0.00024911,3]
[337171731,1725484238172,-11563.68,0.00024911,3]
[337171732,1725484238182,-444.89,0.00024912,3]
[337171733,1725484238191,-3000.0,0.0002492,2]
[337171734,1725484238200,-503.50414763,0.0002492,2]
[337171735,1725484238209,-170.89330773,0.0002492,2]
[337171736,1725484238218,-500.0,0.0002492,2]
[337171737,1725484238227,-500.0,0.0002492,2]
[337171738,1725484238237,-500.0,0.0002492,2]
[337171739,1725484238257,-500.0,0.0002492,2]
[337171740,1725484238269,-500.0,0.0002492,2]
[337171741,1725484238279,-500.0,0.0002492,2]
[337171742,1725484238289,-500.0,0.0002492,2]
[337171743,1725484238298,-500.0,0.0002492,2]
[337171744,1725484238308,-500.0,0.0002492,2]
[337171745,1725484238319,-618.62942885,0.0002492,2]
[337171746,1725484238329,-500.0,0.0002492,2]
[337171747,1725484238338,-500.0,0.0002492,2]
[337171748,1725484238348,-500.0,0.0002492,2]
[337171749,1725484238358,-500.0,0.0002492,2]
[337171750,1725484238368,-500.0,0.0002492,2]
[337171751,1725484238378,-500.0,0.0002492,2]
[337171752,1725484238388,-500.0,0.0002492,2]
[337171753,1725484238398,-500.0,0.0002492,2]
[337171754,1725484238407,-500.0,0.0002492,2]
[337171755,1725484238418,-500.0,0.0002492,2]
[337171756,1725484238428,-500.0,0.0002492,2]
[337171757,1725484238438,-500.0,0.0002492,2]
[337171758,1725484238447,-500.0,0.0002492,2]
[337171759,1725484238457,-500.0,0.0002492,2]
[337171760,1725484238467,-500.0,0.0002492,2]
[337171761,1725484238477,-500.0,0.0002492,2]
[337171762,1725484238487,-500.0,0.0002492,2]
[337171763,1725484238496,-500.0,0.0002492,2]
[337171764,1725484238506,-500.0,0.0002492,2]
[337171765,1725484238516,-500.0,0.0002492,2]
[337171766,1725484238525,-163.48408155,0.00024921,2]
[337171767,1725484238535,-500.0,0.00024921,2]
[337171768,1725484238546,-500.0,0.00024921,2]
[337171769,1725484238555,-500.0,0.00024921,2]
[337171770,1725484238565,-384.13963035,0.00024921,2]
[337171771,1725484238575,-500.0,0.00024921,2]
[337171772,1725484238585,-500.0,0.00024921,2]
[337171773,1725484238596,-500.0,0.00024921,2]
[337171774,1725484238605,-275.84290444,0.00024921,2]
[337171775,1725484238615,-500.0,0.00024921,2]
[337171776,1725484238625,-500.0,0.00024921,2]
[337171777,1725484238641,-500.0,0.00024921,2]
[337171778,1725484238651,-500.0,0.00024921,2]
[337171779,1725484238660,-500.0,0.00024921,2]
[337171780,1725484238671,-500.0,0.00024921,2]
[337171781,1725484238681,-500.0,0.00024921,2]
[337171782,1725484238691,-500.0,0.00024921,2]
[337171783,1725484238701,-500.0,0.00024921,2]
[337171784,1725484238713,-500.0,0.00024921,2]
[337171785,1725484238723,-500.0,0.00024921,2]
[337171786,1725484238734,-500.0,0.00024921,2]
[337171787,1725484238744,-500.0,0.00024921,2]
[337171788,1725484238753,-500.0,0.00024921,2]
[337171789,1725484238763,-500.0,0.00024921,2]
[337171790,1725484238772,-413.0234326,0.00024921,2]
[337171791,1725484238782,-500.0,0.00024921,2]
[337171792,1725484238792,-500.0,0.00024921,2]
[337171793,1725484238803,-500.0,0.00024921,2]
[337171794,1725484238812,-500.0,0.00024921,2]
[337171795,1725484238822,-500.0,0.00024921,2]
[337171796,1725484238832,-298.39057316,0.00024921,2]